bitfinex-derivatives/quotes_ETHF0:USTF0_20250518
["timestamp","ask_amount","ask_price","bid_price","bid_amount"]
[1747582953051,1.2818,2564.5,2564.3,1.3132]
[1747582953347,4.3398,2564.5,2564.4,0.77965]
[1747582954048,3.058,2564.5,2564.4,1.43775]
[1747582954545,3.058,2564.5,2564.4,2.06485]
[1747582954745,3.058,2564.5,2564.4,3.33405]
[1747582955151,3.9874,2564.6,2564.4,3.33405]
[1747582955349,1.3334,2564.5,2564.4,3.33405]
[1747582955850,2.11302,2564.5,2564.4,0.6271]
[1747582956155,4.3914,2564.5,2564.2,0.7797]
[1747582956351,0.09218003,2564.3,2564.2,0.7797]
[1747582956647,1.42558003,2564.3,2564.2,0.7797]
[1747582959152,4.48358003,2564.3,2564.2,0.7797]
[1747582961147,1.42558003,2564.3,2564.2,0.7797]
[1747582961860,0.09218003,2564.3,2564.2,5.15110615]
[1747582963157,0.09218003,2564.3,2564.2,21.50010615]
[1747582964859,3.2078,2564.9,2564.8,0.77953]
[1747582965156,3.2078,2564.9,2564.8,8.95353]
[1747582965563,1.2684,2565.2,2565.1,0.77944]
[1747582966256,4.3264,2565.2,2565.1,0.77944]
[1747582967263,3.8855,2565.5,2565.4,0.77935]
[1747582967468,4.5365,2565.5,2565.4,0.77935]
[1747582967969,1.3287,2565.5,2565.4,0.77935]
[1747582968170,1.3287,2565.5,2565.1,1.2898]
[1747582968369,1.3287,2565.5,2565.4,0.77935]
[1747582968673,2.6956,2565.5,2565.4,0.77935]
[1747582969175,5.7536,2565.5,2565.4,0.77935]
[1747582970173,5.7536,2565.5,2565.4,0.77934]
[1747582970774,5.7536,2565.5,2565.1,1.39953]
[1747582970974,0.7794,2565.3,2565.1,0.77943]
[1747582971273,0.77945,2565.1,2564.9,0.77948]
[1747582971572,1.8924,2565.0,2564.9,0.77948]
[1747582972179,4.9504,2565.0,2564.9,0.77948]
[1747582972481,3.058,2565.0,2564.9,0.77948]
[1747582972776,3.058,2565.0,2564.9,2.04968]
[1747582973376,0.09218003,2565.2,2565.1,0.77944]
[1747582974777,2.21159003,2565.2,2564.9,1.2702]
[1747582974977,1.43218003,2565.2,2565.0,0.77945]
[1747582975174,2.21160003,2565.2,2565.0,0.77945]
[1747582975373,0.77945,2565.1,2564.9,0.77948]
[1747582975676,1.3321,2565.0,2564.9,0.77948]
[1747582976287,4.3901,2565.0,2564.9,0.77948]
[1747582976776,3.058,2565.0,2564.9,4.99432192]
[1747582977173,3.29998003,2565.2,2565.1,0.77944]
[1747582978682,4.07939003,2565.2,2565.1,0.77944]
[1747582978873,1.39678003,2565.2,2565.1,0.77944]
[1747582979071,0.09218003,2565.2,2565.1,16.65392672]
[1747582979382,0.09218003,2565.2,2565.1,18.00432672]
[1747582979684,3.2078,2565.5,2565.4,0.77935]
[1747582980783,1.3046,2565.6,2565.5,0.77931]
[1747582980982,2.98085935,2565.7,2565.6,0.77928]
[1747582981679,0.6836,2565.8,2565.7,0.77925]
[1747582981884,0.00643143,2566.0,2565.9,0.77919]
[1747582982084,3.06443143,2566.0,2565.9,0.77919]
[1747582983484,3.06443143,2566.0,2565.9,5.22737945]
[1747582984283,0.00643143,2566.0,2565.9,5.22737945]
[1747582984592,0.00643143,2566.0,2565.9,13.39437945]
[1747582984792,0.09861146,2566.0,2565.9,13.39437945]
[1747582984982,0.09861146,2566.0,2565.9,55.47107945]
[1747582986087,0.09861146,2566.0,2565.9,63.64407945]
[1747582986290,0.09861146,2566.0,2565.9,68.64407945]
[1747582986680,4.5183,2566.6,2566.5,0.77901]
[1747582986681,3.8605,2566.6,2566.5,0.77901]
[1747582986989,3.2078,2566.6,2566.5,0.77901]
[1747582987302,0.77894,2566.8,2566.6,0.77898]
[1747582987784,6.9185,2566.9,2566.3,2.6679]
[1747582987985,3.98681,2566.6,2566.4,8.166]
[1747582988190,0.77901,2566.6,2566.4,13.12319412]
[1747582988387,3.98681,2566.6,2566.4,0.77904]
[1747582988584,0.77901,2566.5,2566.3,8.94505]
[1747582988790,0.6527,2566.4,2566.3,8.94507]
[1747582989195,3.7107,2566.4,2566.2,0.77908]
[1747582989395,3.7107,2566.4,2566.3,8.94407]
[1747582989893,3.058,2566.4,2566.3,12.99804848]
[1747582990089,3.058,2566.4,2566.3,14.24994848]
[1747582990294,0.6508,2566.7,2566.6,0.77898]
[1747582991187,3.7088,2566.7,2566.6,0.77898]
[1747582991491,3.058,2566.7,2566.6,5.00929479]
[1747582993495,3.058,2566.7,2566.6,13.17329479]
[1747582996498,3.058,2566.7,2566.6,5.00929479]
[1747582996691,3.058,2566.7,2566.2,1.94776]
[1747582996899,3.058,2566.7,2566.2,3.30946]
[1747582997100,0.77898,2566.6,2566.3,4.14911397]
[1747582997300,0.663,2566.5,2566.4,0.77904]
[1747582997799,1.44201,2566.5,2566.1,4.77311397]
[1747582997995,0.663,2566.5,2565.7,3.4937891]
[1747582998203,3.98688,2566.3,2565.8,8.26]
[1747582998400,1.3015,2566.2,2566.1,0.77913]
[1747582998699,0.77914,2566.1,2566.0,0.77915]
[1747582998901,0.6275,2566.1,2566.0,0.77915]
[1747582999101,4.987,2566.1,2566.0,0.77915]
[1747582999804,4.987,2566.1,2565.6,3.2078]
[1747583000100,0.77925,2565.8,2565.6,12.23906]
[1747583000301,1.3588,2565.7,2565.6,12.23906]
[1747583000699,1.3588,2565.7,2565.6,3.98706]
[1747583001197,4.4168,2565.7,2565.6,5.23936]
[1747583001495,4.4168,2565.7,2565.6,3.98706]
[1747583002491,4.4168,2565.7,2565.2,9.18949826]
[1747583002703,4.4168,2565.7,2565.2,1.80588826]
[1747583002704,0.77937,2565.4,2565.2,1.80588826]
[1747583002902,1.9646,2565.3,2565.2,1.80588826]
[1747583003809,1.9646,2565.3,2565.2,0.77939]
[1747583004103,5.0226,2565.3,2565.2,0.77939]
[1747583005007,5.802,2565.3,2565.0,3.2078]
[1747583005208,5.802,2565.3,2565.1,0.77943]
[1747583005504,5.802,2565.3,2565.1,0.77942]
[1747583005908,3.2078,2565.2,2564.8,1.02649826]
[1747583006102,0.77947,2565.0,2564.8,1.80600826]
[1747583006306,1.2418,2564.9,2564.8,1.80600826]
[1747583006507,1.2418,2564.9,2564.8,1.80602826]
[1747583006701,0.6308,2565.1,2564.8,1.80602826]
[1747583006702,3.2078,2565.1,2565.0,0.77947]
[1747583007407,3.2078,2565.1,2565.0,2.10727]
[1747583007606,1.2418,2565.2,2565.1,0.77944]
[1747583009112,4.2998,2565.2,2565.1,0.77944]
[1747583011109,3.2078,2565.6,2565.5,0.77931]
[1747583012301,6.2658,2565.6,2565.5,0.77931]
[1747583014208,3.2078,2565.6,2565.5,0.77931]
[1747583015313,6.2658,2565.6,2565.5,0.90111119]
[1747583015811,3.058,2565.6,2565.5,0.90111119]
[1747583016314,3.15018003,2565.6,2565.5,0.90111119]
[1747583016910,3.15018003,2565.6,2565.5,2.26141119]
[1747583017314,0.09218003,2565.6,2565.5,2.26140282]
[1747583019018,11.3728,2566.2,2566.1,0.77913]
[1747583019212,11.3728,2566.2,2566.1,0.90091618]
[1747583020109,8.8261,2566.4,2566.3,0.77907]
[1747583020312,9.60514,2566.4,2566.3,0.12178618]
[1747583020508,14.60514,2566.4,2566.3,0.12178618]
[1747583020706,13.8261,2566.4,2566.3,0.90085618]
[1747583020904,0.6611,2566.4,2566.3,0.77907]
[1747583021111,3.7191,2566.4,2566.3,0.9008445]
[1747583021612,5.0026,2566.4,2566.3,0.9008445]
[1747583025421,4.3415,2566.4,2566.3,0.9008445]
[1747583027019,3.058,2566.4,2566.3,0.9008445]
[1747583028416,3.2078,2566.6,2566.5,0.77901]
[1747583028618,3.2078,2566.6,2566.5,9.10975946]
[1747583029018,3.2078,2566.6,2566.5,10.39185946]
[1747583029219,6.2658,2566.6,2566.5,10.39185946]
[1747583029616,6.2658,2566.6,2566.5,2.18285946]
[1747583029812,6.2658,2566.6,2566.5,0.90075946]
[1747583030320,8.221,2566.6,2566.5,0.90075946]
[1747583030521,8.221,2566.6,2566.5,0.12174946]
[1747583030717,8.99998,2566.6,2566.5,0.90075946]
[1747583031023,8.221,2566.6,2566.5,0.90075946]
[1747583031720,7.5883,2566.6,2566.5,0.90075946]
[1747583031923,6.2658,2566.6,2566.5,0.90075946]
[1747583032125,3.058,2566.6,2566.5,0.90075938]
[1747583032427,3.058,2566.6,2566.5,1.58405851]
[1747583033026,5.53415935,2567.2,2566.5,18.22840387]
[1747583033230,2.32635935,2567.2,2567.1,0.77883]
[1747583033416,2.32635935,2567.2,2567.1,0.90057851]
[1747583033613,1.20767935,2567.2,2567.1,4.10837851]
[1747583033815,4.04e-06,2567.2,2567.1,10.28893387]
[1747583034224,3.05800404,2567.2,2567.1,10.28893387]
[1747583034525,3.10239103,2567.5,2567.4,0.77874]
[1747583034722,1.2853,2568.1,2568.0,0.77856]
[1747583034916,2.06383,2568.1,2568.0,0.12174851]
[1747583035124,1.2853,2568.1,2568.0,0.12174851]
[1747583035324,4.3433,2568.1,2568.0,0.12174851]
[1747583035827,5.12183,2568.1,2568.0,0.12174851]
[1747583036215,10.12183,2568.1,2568.0,0.12174851]
[1747583036421,18.35683,2568.1,2568.0,0.12174851]
[1747583036621,0.77869,2567.6,2567.3,9.66664]
[1747583036822,3.43431,2567.5,2567.4,0.12170856]
[1747583037922,3.43431,2567.5,2567.4,0.12172047]
[1747583038124,6.49231,2567.5,2567.4,0.12172047]
[1747583041038,5.0526,2567.5,2567.4,0.12172047]
[1747583041230,5.0526,2567.5,2567.4,0.12171856]
[1747583041732,5.83131,2567.5,2567.4,0.12171856]
[1747583042331,10.83131,2567.5,2567.4,0.12171856]
[1747583042733,5.83131,2567.5,2567.4,0.12171856]
[1747583042924,5.83131,2567.5,2567.4,0.12172358]
[1747583043128,5.83131,2567.5,2567.4,0.90046355]
[1747583043328,5.83131,2567.5,2567.4,0.12172355]
[1747583043634,5.0526,2567.5,2567.4,0.90046355]
[1747583043938,4.4149,2567.5,2567.4,0.90046355]
[1747583044235,3.058,2567.8,2567.7,0.77865]
[1747583044433,4.4265,2567.8,2567.7,0.90037355]
[1747583044838,4.4265,2567.8,2567.7,0.90034666]
[1747583046037,3.058,2567.8,2567.7,9.12134666]
[1747583046238,3.058,2567.8,2567.7,5.378544]
[1747583046439,3.058,2567.8,2567.7,21.832544]
[1747583046643,3.058,2567.8,2567.7,21.83253154]
[1747583047545,3.058,2567.8,2567.7,21.83353154]
[1747583048341,3.058,2567.8,2567.7,5.37853154]
[1747583048540,3.058,2567.8,2567.7,21.82653154]
[1747583048735,3.058,2567.8,2567.7,26.82653154]
[1747583049344,3.058,2567.8,2567.7,5.37853154]
[1747583050036,3.058,2567.8,2567.7,21.81353154]
[1747583050536,3.058,2567.8,2567.7,21.81353207]
[1747583050732,3.058,2567.8,2567.7,4.59988207]
[1747583051041,4.50632,2567.8,2567.7,0.12168473]
[1747583051435,5.82752,2567.8,2567.7,0.12168473]
[1747583052334,5.82752,2567.8,2567.7,0.12170149]
[1747583052632,3.058,2567.8,2567.7,0.90035149]
[1747583052836,3.058,2567.8,2567.7,13.58768443]
[1747583053052,3.058,2567.8,2567.7,18.58768443]
[1747583053241,3.2078,2568.5,2567.7,19.13313443]
[1747583053434,3.2078,2568.5,2568.4,0.77844]
[1747583053635,0.6748,2568.6,2568.5,0.77841]
[1747583053834,0.6748,2568.6,2568.5,0.90011149]
[1747583054245,3.7328,2568.6,2568.5,0.90006296]
[1747583054635,3.058,2568.6,2568.5,0.90006296]
[1747583054841,3.058,2568.6,2568.5,5.38029212]
[1747583055044,3.058,2568.6,2568.5,23.17619212]
[1747583055348,3.058,2568.6,2568.5,9.90799212]
[1747583055542,3.058,2568.6,2568.5,31.38299212]
[1747583055938,3.058,2568.6,2568.5,14.90799212]
[1747583056143,3.058,2568.6,2568.5,14.90797558]
[1747583056438,3.058,2568.6,2568.5,14.9079676]
[1747583056639,3.058,2568.6,2568.5,23.1761676]
[1747583056842,3.058,2568.6,2568.5,63.9761676]
[1747583057044,1.93488,2568.6,2568.5,72.1839676]
[1747583057238,1.93488,2568.6,2568.5,72.1939676]
[1747583057638,0.28466,2568.6,2568.5,72.1939676]
[1747583057844,3.09006766,2568.9,2568.8,0.77831]
[1747583058046,3.09006766,2568.9,2568.8,4.10773844]
[1747583058341,2.03543,2568.9,2568.8,8.16696098]
[1747583058539,10.33403944,2571.3,2568.8,17.28765098]
[1747583058748,15.51195515,2572.7,2571.7,3.2078]
[1747583058942,0.07774236,2572.6,2571.8,40.8]
[1747583059142,0.07774236,2572.6,2572.4,3.2078]
[1747583059344,0.07774236,2572.6,2572.5,0.12151267]
[1747583059552,0.85490236,2572.6,2572.5,4.2348251]
[1747583059847,0.15552705,2572.6,2572.5,0.12147819]
[1747583060046,5.93268705,2572.6,2572.5,0.12147819]
[1747583060238,0.77733,2572.1,2572.0,3.2078]
[1747583060444,10.42232,2572.1,2572.0,3.2078]
[1747583060645,0.07778469,2572.1,2572.0,3.2078]
[1747583060844,0.07778469,2572.1,2572.0,48.05303295]
[1747583061049,3.13574236,2572.6,2572.0,44.0078]
[1747583061245,3.058,2572.1,2572.0,41.57735]
[1747583061546,3.13575747,2572.1,2572.0,57.82003295]
[1747583061743,3.21354216,2572.1,2572.0,7.25303295]
[1747583061944,3.21354216,2572.1,2572.0,3.2078]
[1747583062144,3.13575747,2572.1,2572.0,3.2078]
[1747583062449,15.51195515,2572.7,2572.3,0.77724]
[1747583062642,15.51195515,2572.7,2572.6,3.2078]
[1747583062951,0.77719,2572.5,2572.4,4.36834655]
[1747583063249,0.77727,2572.3,2572.1,1.41215227]
[1747583063548,0.77727,2572.3,2572.2,3.2078]
[1747583063847,0.07778469,2572.2,2572.0,1.15787805]
[1747583064051,10.49710469,2572.1,2572.0,1.15787805]
[1747583065351,13.55510469,2572.1,2572.0,1.15787805]
[1747583065755,3.13578469,2572.1,2572.0,1.15787805]
[1747583066051,12.77578469,2572.1,2571.9,3.2078]
[1747583066349,9.71778469,2572.0,2571.9,3.2078]
[1747583066546,10.49513469,2572.0,2571.9,3.2078]
[1747583066752,0.77746,2571.7,2571.4,3.2078]
[1747583066952,0.07778469,2571.5,2571.4,3.2078]
[1747583067153,3.13578469,2571.5,2571.4,44.78533]
[1747583067458,3.058,2571.5,2571.4,49.24390475]
[1747583067659,9.64,2572.3,2571.8,0.77738]
[1747583067851,0.07778469,2572.1,2571.8,3.2078]
[1747583068064,0.07778469,2572.0,2571.9,0.77736]
[1747583068355,3.058,2572.1,2572.0,0.77735]
[1747583068757,3.058,2572.1,2572.0,6.13221594]
[1747583069654,3.91310469,2572.1,2572.0,4.08066594]
[1747583069854,3.91311469,2572.1,2571.9,1.39743728]
[1747583070152,1.33908469,2572.0,2571.9,1.39743728]
[1747583070359,1.33908469,2572.0,2571.9,0.77738]
[1747583070668,1.2613,2572.0,2571.9,5.01442935]
[1747583071049,1.2613,2572.0,2571.8,4.36567805]
[1747583071050,1.33908469,2572.0,2571.8,4.36567805]
[1747583071251,0.07778469,2571.9,2571.8,5.14308805]
[1747583071656,4.3193,2572.0,2571.9,0.77738]
[1747583071849,3.058,2572.0,2571.9,11.83668]
[1747583072047,3.058,2572.0,2571.9,15.9503752]
[1747583072253,1.2613,2572.3,2571.9,4.23517023]
[1747583072458,1.2613,2572.3,2572.0,0.12148443]
[1747583072459,0.07778469,2572.1,2572.0,0.12148443]
[1747583072652,3.98512,2572.1,2572.0,0.12148443]
[1747583072953,0.77738,2571.9,2571.8,1.39647803]
[1747583073157,3.91316469,2571.9,2571.8,1.39647803]
[1747583073356,0.77744,2571.7,2571.6,1.15787805]
[1747583073557,4.06302469,2571.7,2571.6,1.15787805]
[1747583073761,10.49322469,2571.7,2571.6,1.15787805]
[1747583073960,0.85522469,2571.7,2571.6,1.15787805]
[1747583074460,3.91322469,2571.7,2571.6,1.15787805]
[1747583074662,13.55122469,2571.7,2571.6,1.15787805]
[1747583075047,0.77753,2571.4,2571.3,1.5456891]
[1747583075254,0.77759,2571.2,2571.1,1.12898876]
[1747583075451,10.49337469,2571.2,2571.1,1.12898876]
[1747583075651,15.49337469,2571.2,2571.1,1.12898876]
[1747583076049,0.77768,2570.9,2570.8,2.31659843]
[1747583076357,0.77777,2570.6,2570.3,0.77785]
[1747583076558,10.49355469,2570.6,2570.2,0.77788]
[1747583076758,10.49355469,2570.6,2570.1,3.8604214]
[1747583077260,0.77789,2570.2,2570.1,3.8604214]
[1747583077459,0.85567469,2570.2,2570.1,3.8604214]
[1747583077759,3.2078,2570.5,2569.6,3.2078]
[1747583078059,0.07778469,2569.7,2569.6,3.98587]
[1747583078259,0.07778469,2569.7,2569.6,3.2078]
[1747583078260,9.71678469,2569.7,2569.6,3.2078]
[1747583078564,0.07778469,2569.7,2569.6,3.2078]
[1747583078961,9.71678469,2569.7,2569.6,3.98587]
[1747583079263,9.71678469,2569.7,2569.6,3.2078]
[1747583079264,13.55282469,2569.7,2569.6,3.2078]
[1747583079658,0.77813,2569.5,2569.2,0.77818]
[1747583079961,0.07778469,2569.4,2569.3,2.11302089]
[1747583080156,1.2613,2569.4,2569.3,1.33486089]
[1747583080361,1.2613,2569.4,2569.3,2.11302089]
[1747583080556,10.9003,2569.4,2569.3,2.11302089]
[1747583080766,10.9023,2569.4,2569.3,2.11302089]
[1747583081061,1.2613,2569.4,2569.3,2.11302089]
[1747583081263,13.9603,2569.4,2569.3,2.11302089]
[1747583081957,4.3193,2569.4,2569.3,2.11302089]
[1747583082160,3.058,2569.4,2569.3,7.50142461]
[1747583082659,9.641,2569.9,2569.8,0.77801]
[1747583082861,9.641,2569.9,2569.6,3.2078]
[1747583083261,12.699,2569.9,2569.7,6.93243349]
[1747583083457,12.699,2569.9,2569.7,7.71046349]
[1747583083654,1.2802,2569.8,2569.7,1.33486089]
[1747583083867,1.2802,2569.8,2569.7,2.11290089]
[1747583084165,4.3382,2569.8,2569.7,2.11290089]
[1747583084361,3.058,2569.8,2569.7,3.34800089]
[1747583084863,3.058,2569.8,2569.7,17.74617457]
[1747583085066,0.6335,2570.5,2570.3,0.77785]
[1747583085266,0.07778469,2570.3,2570.2,0.77789]
[1747583085567,0.85564469,2570.3,2570.2,0.12157404]
[1747583086065,3.91364469,2570.3,2570.2,1.45643493]
[1747583086265,4.43758469,2570.3,2570.2,2.23432493]
[1747583086466,14.07858469,2570.3,2570.2,2.23432493]
[1747583086968,14.85644469,2570.3,2570.2,1.45643493]
[1747583087471,14.85644469,2570.3,2570.2,1.45645052]
[1747583087971,14.85644469,2570.3,2570.2,1.45645115]
[1747583088266,14.07958469,2570.3,2570.2,1.45645115]
[1747583088570,14.85744469,2570.3,2570.2,1.45645115]
[1747583090764,5.21544469,2570.3,2570.2,1.45645115]
[1747583091064,15.05262472,2570.3,2570.2,1.45645115]
[1747583091267,14.27476472,2570.3,2570.2,2.23434115]
[1747583091663,15.05262472,2570.3,2570.2,1.45645115]
[1747583091863,15.05262472,2570.3,2570.2,1.4564535]
[1747583093271,15.05262472,2570.3,2570.2,0.12159261]
[1747583093675,0.77792,2570.1,2570.0,0.77795]
[1747583093864,9.82278469,2570.1,2570.0,0.89954387]
[1747583094068,10.60070469,2570.1,2570.0,0.89954387]
[1747583094366,13.65870469,2570.1,2570.0,0.12159387]
[1747583094765,14.94100469,2570.1,2570.0,0.12159387]
[1747583094968,14.94100469,2570.1,2570.0,0.89954387]
[1747583095172,14.94100469,2570.1,2570.0,0.12159387]
[1747583095772,14.94100469,2570.1,2570.0,0.12159472]
[1747583095972,14.94100469,2570.1,2570.0,0.89954472]
[1747583096172,14.16308469,2570.1,2570.0,2.23367008]
[1747583096367,5.19600469,2570.1,2570.0,1.45572008]
[1747583096569,14.94100469,2570.1,2570.0,1.45572008]
[1747583096770,5.19600469,2570.1,2570.0,1.45572008]
[1747583096969,14.94100469,2570.1,2570.0,1.45572008]
[1747583097171,5.19600469,2570.1,2570.0,1.45572008]
[1747583097472,0.77798,2570.0,2569.8,0.77799]
[1747583097670,1.34548469,2569.9,2569.8,0.77799]
[1747583097871,2.12346469,2569.9,2569.8,0.12159778]
[1747583098079,2.12346469,2569.9,2569.8,0.89960778]
[1747583098270,5.18146469,2569.9,2569.8,0.89960778]
[1747583098878,5.18146469,2569.9,2569.8,0.12159778]
[1747583099365,4.40348469,2569.9,2569.8,0.12159943]
[1747583099567,5.18146469,2569.9,2569.8,0.12159943]
[1747583100374,18.99848469,2569.9,2569.0,6.840903]
[1747583100580,0.77828,2568.9,2568.8,3.04040133]
[1747583100776,10.52428,2568.9,2568.8,3.04040133]
[1747583100977,13.80986469,2568.9,2568.8,3.04040133]
[1747583101172,16.86786469,2568.9,2568.8,3.04040133]
[1747583101371,8.36226469,2568.9,2568.8,3.04040133]
[1747583101574,18.10826469,2568.9,2568.8,3.04040133]
[1747583102976,0.77841,2568.5,2568.4,3.80050167]
[1747583103176,4.06399469,2568.5,2568.4,3.80050167]
[1747583103572,4.06399469,2568.5,2568.0,5.40458997]
[1747583103573,0.77851,2568.2,2568.0,0.77855]
[1747583103779,3.2078,2568.8,2568.0,1.9464]
[1747583103981,1.2372,2570.2,2569.0,1.94561]
[1747583104286,0.77808,2569.6,2569.1,6.68931646]
[1747583104584,0.77808,2569.6,2568.5,3.2078]
[1747583104585,0.07778469,2569.1,2568.5,3.2078]
[1747583104880,0.07778469,2568.9,2568.8,0.77831]
[1747583105072,11.06298469,2568.9,2568.8,0.77831]
[1747583105275,11.15516472,2568.9,2568.7,0.77833]
[1747583105476,9.82578469,2568.8,2568.7,0.77834]
[1747583105781,0.07778469,2568.8,2568.7,0.77834]
[1747583105977,9.748,2568.8,2568.7,0.77834]
[1747583106281,0.09218003,2568.9,2568.8,0.77831]
[1747583106475,0.09218003,2568.9,2568.8,5.57352027]
[1747583107079,0.09218003,2568.9,2568.8,6.89867623]
[1747583107377,3.15018003,2568.9,2568.8,6.89867623]
[1747583108276,3.15018003,2568.9,2568.8,6.89863963]
[1747583108476,1.2944,2569.4,2569.3,0.77816]
[1747583108685,11.0424,2569.4,2569.3,3.98596]
[1747583108885,1.37218469,2569.4,2569.3,3.98596]
[1747583109083,0.6759,2570.0,2569.5,1.94526]
[1747583109385,0.07778469,2569.7,2569.6,5.30297]
[1747583109679,0.07778469,2569.6,2569.2,14.1884]
[1747583109884,0.07778469,2569.4,2569.3,1.32515596]
[1747583110084,0.07778469,2569.4,2569.3,2.10331596]
[1747583110683,9.82578469,2569.4,2569.3,2.10331596]
[1747583111084,0.07778469,2569.4,2569.3,2.10331596]
[1747583111385,3.13578469,2569.4,2569.3,2.10331596]
[1747583111785,4.41248469,2569.4,2569.3,2.10331596]
[1747583112487,4.3347,2569.4,2569.3,2.22493553]
[1747583112687,4.3347,2569.4,2569.3,3.54393553]
[1747583113386,4.41248469,2569.4,2569.3,1.44677553]
[1747583113684,4.41248469,2569.4,2569.3,2.22493553]
[1747583113882,4.3347,2569.4,2569.3,2.22493561]
[1747583114188,3.058,2569.4,2569.3,2.22493561]
[1747583114390,3.058,2569.4,2569.3,3.54393561]
[1747583115382,3.058,2569.4,2569.3,3.83018495]
[1747583115779,3.058,2569.4,2569.3,1.32515596]
[1747583115780,3.91391469,2569.4,2569.3,1.32515596]
[1747583115986,3.13578469,2569.4,2569.3,2.22493958]
[1747583116193,7.12171469,2569.4,2569.3,1.44677958]
[1747583116384,8.43011469,2569.4,2569.3,1.44677958]
[1747583116691,8.43011469,2569.4,2569.3,1.32515596]
[1747583116885,13.43011469,2569.4,2569.3,1.44679409]
[1747583117390,51.8062,2569.4,2568.6,1.53598716]
[1747583117588,0.85612469,2568.7,2568.6,1.53598716]
[1747583117889,10.60412469,2568.7,2568.6,1.53598716]
[1747583118091,13.66212469,2568.7,2568.6,1.65764998]
[1747583118388,13.66212469,2568.7,2568.6,2.98308215]
[1747583118896,12.88378469,2568.7,2568.6,3.76146301]
[1747583119086,18.18492469,2568.7,2568.6,2.86141933]
[1747583119287,14.97712469,2568.7,2568.6,2.86141933]
[1747583119489,5.22912469,2568.7,2568.6,2.86141933]
[1747583119684,14.97712469,2568.7,2568.6,2.86141933]
[1747583119884,14.97712469,2568.7,2568.6,2.98308788]
[1747583120086,14.97712469,2568.7,2568.6,0.12166855]
[1747583120286,0.77839,2568.6,2568.4,0.77841]
[1747583120488,1.39278469,2568.5,2568.4,0.77841]
[1747583120694,1.39278469,2568.5,2568.4,2.22449336]
[1747583120993,10.897,2568.5,2568.4,2.22449336]
[1747583121193,14.81119469,2568.5,2568.4,1.44608336]
[1747583121383,14.81119469,2568.5,2568.4,1.44609115]
[1747583122194,29.38419469,2568.5,2568.4,1.32441607]
[1747583122984,0.77856,2568.0,2567.9,1.53598716]
[1747583123188,13.49734469,2568.0,2567.9,1.53598716]
[1747583123696,18.49734469,2568.0,2567.9,1.53598716]
[1747583123897,13.49734469,2568.0,2567.9,1.53598716]
[1747583124801,3.13578469,2568.0,2567.9,2.31457716]
[1747583125098,12.641,2568.0,2567.9,2.31457716]
[1747583125493,14.0065,2568.0,2567.9,0.77859]
[1747583125792,14.0065,2568.0,2567.8,2.0402]
[1747583125994,4.4235,2568.0,2567.8,2.0402]
[1747583126184,9.585,2567.9,2567.8,2.04022]
[1747583126388,11.02828469,2567.9,2567.8,2.04022]
[1747583126584,10.9505,2567.9,2567.8,2.04022]
[1747583127193,3.058,2567.9,2567.8,2.04022]
[1747583127392,12.643,2567.9,2567.8,2.04022]
[1747583128099,13.9939,2567.9,2567.8,2.04022]
[1747583128600,3.058,2567.9,2567.8,5.24802]
[1747583128800,3.058,2567.9,2567.8,10.24802]
[1747583129094,3.058,2567.9,2567.8,14.51039397]
[1747583129289,1.3509,2568.6,2567.8,14.0177819]
[1747583129492,0.07778469,2568.6,2568.5,0.77841]
[1747583129694,0.07778469,2568.6,2568.5,2.11611]
[1747583129894,9.585,2568.7,2568.6,0.77837]
[1747583130202,3.13578469,2568.7,2568.6,0.77837]
[1747583130403,12.72078469,2568.7,2568.6,0.77837]
[1747583130603,14.04218469,2568.7,2568.6,0.77837]
[1747583131103,13.9644,2568.7,2568.6,0.77837]
[1747583131296,4.3794,2568.7,2568.6,0.77837]
[1747583131491,13.9644,2568.7,2568.6,0.77837]
[1747583131696,13.9644,2568.7,2568.5,1.3377]
[1747583131896,13.9644,2568.7,2568.4,3.2078]
[1747583131897,14.04218469,2568.7,2568.4,3.2078]
[1747583132303,14.04218469,2568.7,2568.6,0.77837]
[1747583132505,14.82052469,2568.7,2568.6,0.77837]
[1747583132699,14.04218469,2568.7,2568.6,0.77837]
[1747583133199,13.9644,2568.7,2568.6,0.77837]
[1747583133500,4.3794,2568.7,2568.6,0.77837]
[1747583134704,3.058,2568.7,2568.6,0.77837]
[1747583134906,3.058,2568.7,2568.6,10.0536246]
[1747583135099,9.585,2569.1,2569.0,0.77825]
[1747583135701,9.585,2569.1,2569.0,2.04265]
[1747583136002,0.00779075,2569.4,2569.3,0.77816]
[1747583136504,0.00779075,2569.4,2569.3,2.11326]
[1747583137204,3.06579075,2569.4,2569.3,2.11326]
[1747583138302,3.06579075,2569.4,2569.3,4.07683116]
[1747583138708,1.2615,2569.9,2569.3,8.29867116]
[1747583138904,0.07778469,2570.1,2570.0,0.77795]
[1747583139708,1.2615,2570.2,2570.1,0.77792]
[1747583139908,3.2078,2570.8,2570.5,0.77779]
[1747583140104,0.07778469,2570.6,2570.5,0.77779]
[1747583140412,1.32558469,2570.6,2570.2,1.2735]
[1747583140713,0.07778469,2570.3,2570.2,2.05139]
[1747583141115,3.13578469,2570.3,2570.2,2.05139]
[1747583141307,3.2078,2571.2,2571.1,0.77762]
[1747583141604,1.2478,2571.4,2570.9,3.2078]
[1747583141810,1.2478,2571.1,2571.0,0.77765]
[1747583141999,1.32558469,2571.1,2571.0,0.77765]
[1747583142203,4.3058,2571.1,2571.0,0.77765]
[1747583142704,3.058,2571.1,2571.0,11.53849284]
[1747583142902,3.058,2571.1,2571.0,6.53849284]
[1747583143117,3.058,2571.1,2571.0,15.94249284]
[1747583143306,1.3519,2571.4,2571.2,0.77757]
[1747583143500,0.07778469,2571.3,2571.2,0.77757]
[1747583143708,0.07778469,2571.3,2571.0,5.76084284]
[1747583143909,1.3519,2571.2,2571.1,0.77759]
[1747583144104,13.41447,2571.6,2571.3,0.77754]
[1747583144309,1.3519,2571.5,2571.3,0.77754]
[1747583144509,1.3519,2571.5,2571.2,3.2078]
[1747583144510,0.07778469,2571.4,2571.2,3.2078]
[1747583144810,1.3519,2571.5,2571.4,0.77753]
[1747583145015,1.3519,2571.5,2571.3,1.2629]
[1747583145016,12.7868,2571.9,2571.6,0.77744]